Workbook

Sheet Gases
B2: This Excel-Sheet is to calculate the SYS-MMF Settings for Gas-Flow only!
B3: Depending if you are using a ISO5167 primary Element or a pitot tube, please use the left or the right Box
B4: Enter your design data in the blue marked fields, the specific seetings for the SYS-MMF can be found on the bottom of the box
B7: Orifice/Venturi/Nozzle | H7: Pitot tube
B8: C | C8: 0.665 | D8: [-] | H8: K | I8: 0.56817 | J8: [-]
B9: D(warm) | C9: 205.3 | D9: [mm] | H9: D(warm) | I9: 107.3 | J9: [mm] | O9: Calculations | R9: Calculations
B10: d(warm) | C10: 107.55 | D10: [mm] | O10: A | P10: =PI()*(Durchmesser/1000)^2/4 -> 0.00908470252 | Q10: [m²] | R10: A | S10: =PI()*(I9/1000)^2/4 -> 0.009042516821 | T10: [m²]
B11: RhoN | C11: 0.745 | D11: [kg/Nm³] | H11: RhoN | I11: 1.2929 | J11: [kg/Nm³] | O11: beta | P11: =Durchmesser/beta -> 0.523867511 | Q11: [-]
O12: K | P12: =Durchflusskoeff/(1-P11^4)^0.5 -> 0.6915521206 | Q12: [-]
B13: Prozess Data | H13: Prozess Data | O13: q0 | P13: =P12*P10*C18*SQRT(2*273.15/(101.325*RhoN))*3600*100/C16+10.8240562 -> 11.31030064 | R13: q0 | S13: =I8*S10*I18*SQRT(2*273.15/(101.325*I11))*3600*100/I16+10.8240562 -> 29.70896777
B14: Design p | C14: 225 | D14: [kPa] | H14: Design p | I14: 100 | J14: [kPa] | O14: q1 | P14: =IF(P13>1000,P13/10,IF(P13>10000,P13/100,P13)) -> 11.31030064 | R14: q1 | S14: =IF(S13>1000,S13/10,IF(S13>10000,S13/100,S13)) -> 29.70896777
B15: Design T | C15: 55 | D15: [°C] | H15: Design T | I15: 20 | J15: [°C] | O15: Last Bit | P15: =IF(P13>1000,1,IF(P13>10000,2,0)) -> 0 | R15: Last Bit | S15: =IF(S13>1000,1,IF(S13>10000,2,0)) -> 0
B16: Design Flow | C16: 12000 | D16: [Nm³/h] | H16: Design Flow | I16: 200 | J16: [Nm³/h] | O16: Buildt | P16: =TEXT(P14,"000,00000")&P15&"0" -> 011,3103000 | R16: Buildt | S16: =TEXT(S14,"000,00000")&S15&"0" -> 029,7089700
B17: Design dp | C17: 288.5 | D17: [mbar] | H17: Design dp | I17: 14.99 | J17: [mbar] | O17: Keps | P17: =(1-C18)*DesignP/(C17/10) -> 0.3197573657 | R17: Keps | S17: =(1-I18)*I14/(I17/10) -> 0
B18: Design e | C18: 0.959 | D18: [-] | H18: Design e | I18: 1 | J18: [-]
B21: Settings for SYS MMF | H21: Settings for SYS MMF
B23: Medium | C23: Gas | H23: Medium | I23: Gas
B24: Flow Rate | C24: =C16 -> 12000 | D24: =D16 -> [Nm³/h] | H24: Flow Rate | I24: =I16 -> 200 | J24: =J16 -> [Nm³/h]
B25: Flow Coeff | C25: =P16 -> 011,3103000 | H25: Flow Coeff | I25: =S16 -> 029,7089700
B26: KEPS | C26: =TEXT(P17,"000,0000000") -> 000,3197574 | H26: KEPS | I26: =TEXT(S17,"000,0000000") -> 000,0000000

Sheet Steam or Water
B2: This Excel-Sheet is to calculate the SYS-MMF Settings for Steam or Water -Flow only!
B3: Depending if you are using a ISO5167 primary Element or a pitot tube, please use the left or the right Box
B4: Enter your design data in the blue marked fields, the specific seetings for the SYS-MMF can be found on the bottom of the box
B6: Orifice/Venturi/Nozzle | H6: Pitot tube
B7: C | C7: 0.60182 | D7: [-] | H7: K | I7: 0.62339 | J7: [-]
B8: D(warm) | C8: 500.18 | H8: D(warm) | I8: 500.18 | J8: [mm] | O8: Calculations | R8: Calculations
B9: d(warm) | C9: 250.09 | D9: [mm] | O9: A | P9: =PI()*(C9/1000)^2/4 -> 0.04912273449 | Q9: [m²] | R9: A | S9: =PI()*(I8/1000)^2/4 -> 0.196490938 | T9: [m²]
B10: Fluid | H10: Fluid | O10: beta | P10: =C9/C8 -> 0.5 | Q10: [-]
O11: K | P11: =C7/(1-P10^4)^0.5 -> 0.6215570233 | Q11: [-]
B12: Prozess Data | H12: Prozess Data | O12: Massenfluss | P12: =IF(Q23=3,C16*C15,C16) -> 380 | Q12: [kg/h] | R12: Massenfluss | S12: =IF(Q23=3,I16*I15,I16) -> 380 | T12: [kg/h]
B13: Design p | C13: 2700 | D13: [kPa] | H13: Design p | I13: 2700 | J13: [kPa] | O13: q0 | P13: =SQRT(2)*P11*C18*P9*3600 -> 155.4465226 | R13: q0 | S13: =SQRT(2)*I7*I18*S9*3600 -> 622.3725032
B14: Design T | C14: 50 | D14: [°C] | H14: Design T | I14: 50 | J14: [°C] | O14: q1 | P14: =IF(P13>1000,P13/10,IF(P13>10000,P13/100,P13)) -> 155.4465226 | R14: q1 | S14: =IF(S13>1000,S13/10,IF(S13>10000,S13/100,S13)) -> 622.3725032
B15: Design Desnity | C15: 989.1747 | D15: [kg/m³] | H15: Design Desnity | I15: 989.1747 | J15: [kg/m³] | O15: Last Bit kg | P15: =IF(P11>1000,1,IF(P11>10000,2,0)) -> 0 | R15: Last Bit kg | S15: =IF(S11>1000,1,IF(S11>10000,2,0)) -> 0
B16: Design Flow | C16: 380 | D16: =IF(Q23=3,"[m³/h]","[kg/h]") -> [kg/h] | H16: Design Flow | I16: 380 | J16: =IF(Q23=3,"[m³/h]","[kg/h]") -> [kg/h] | O16: Last Bit usereinheit | P16: =IF(Q23=3,P15,P15) -> 0 | R16: Last Bit usereinheit | S16: =IF(Q23=3,S15,S15) -> 0
B17: Design dp | C17: 59.115 | D17: [mbar] | H17: Design dp | I17: 3.673 | J17: [mbar] | O17: Buildt | P17: =TEXT(P14,"000,00000")&P16&"0" -> 155,4465200 | R17: Buildt | S17: =TEXT(S14,"000,00000")&S16&"0" -> 622,3725000
B18: Design e | C18: 1 | D18: [-] | H18: Design e | I18: 0.998 | J18: [-] | O18: Keps | P18: =(1-C18)*C13/(C17/10) -> 0 | R18: Keps | S18: =(1-I18)*I13/(I17/10) -> 14.70187857
B21: Settings for SYS MMF | H21: Settings for SYS MMF
B23: Medium | C23: =IF(Q23=1,"Suph_Steam",IF(Q23=2,"Sat_Steam","Water")) -> Suph_Steam | H23: Medium | I23: =IF(Q23=1,"Suph_Steam",IF(Q23=2,"Sat_Steam","Water")) -> Suph_Steam | O23: Superheated Steam | Q23: 1
B24: Flow Rate | C24: =C16 -> 380 | D24: =D16 -> [kg/h] | H24: Flow Rate | I24: =I16 -> 380 | J24: =J16 -> [kg/h] | O24: Saturated Steam
B25: Flow Coeff | C25: =P17 -> 155,4465200 | H25: Flow Coeff | I25: =S17 -> 622,3725000 | O25: Water
B26: KEPS | C26: =TEXT(P18,"000,0000000") -> 000,0000000 | H26: KEPS | I26: =TEXT(S18,"000,0000000") -> 014,7018786

Sheet other Liquids
B2: This Excel-Sheet is to calculate the SYS-MMF Settings for Liquids-Flow only!
B3: Depending if you are using a ISO5167 primary Element or a pitot tube, please use the left or the right Box
B4: Enter your design data in the blue marked fields, the specific seetings for the SYS-MMF can be found on the bottom of the box
B6: Orifice/Venturi/Nozzle | H6: Pitot tube
B7: C | C7: 0.60182 | D7: [-] | H7: K | I7: 0.66809 | J7: [-]
B8: D(warm) | C8: 500.18 | H8: D(warm) | I8: 500.18 | J8: [mm] | O8: Calculations | R8: Calculations
B9: d(warm) | C9: 250.09 | D9: [mm] | O9: A | P9: =PI()*(C9/1000)^2/4 -> 0.04912273449 | Q9: [m²] | R9: A | S9: =PI()*(I8/1000)^2/4 -> 0.196490938 | T9: [m²]
O10: beta | P10: =C9/C8 -> 0.5 | Q10: [-]
O11: K | P11: =C7/(1-P10^4)^0.5 -> 0.6215570233 | Q11: [-]
B12: Prozess Data | H12: Prozess Data | O12: Massenfluss | P12: =C16*C15 -> 375886.386 | Q12: [kg/h] | R12: Massenfluss | S12: =I16*I15 -> 375886.386 | T12: [kg/h]
B13: Design p | C13: 2700 | D13: [kPa] | H13: Design p | I13: 2700 | J13: [kPa] | O13: q0 | P13: =SQRT(2)*P11*P9*3600 -> 155.4465226 | R13: q0 | S13: =SQRT(2)*I7*S9*3600 -> 668.3362163
B14: Design T | C14: 50 | D14: [°C] | H14: Design T | I14: 50 | J14: [°C] | O14: q1 | P14: =IF(P13>1000,P13/10,IF(P13>10000,P13/100,P13)) -> 155.4465226 | R14: q1 | S14: =IF(S13>1000,S13/10,IF(S13>10000,S13/100,S13)) -> 668.3362163
B15: Design Desnity | C15: 989.1747 | D15: [kg/m³] | H15: Design Desnity | I15: 989.1747 | J15: [kg/m³] | O15: Last Bit kg | P15: =IF(P11>1000,1,IF(P11>10000,2,0)) -> 0 | R15: Last Bit kg | S15: =IF(S11>1000,1,IF(S11>10000,2,0)) -> 0
B16: Design Flow | C16: 380 | D16: =IF(Q23=3,"[m³/h]","[kg/h]") -> [kg/h] | H16: Design Flow | I16: 380 | J16: =IF(Q23=3,"[m³/h]","[kg/h]") -> [kg/h] | O16: Last Bit usereinheit | P16: =IF(Q23=3,P15,P15) -> 0 | R16: Last Bit usereinheit | S16: =IF(Q23=3,S15,S15) -> 0
B17: Design dp | C17: 59.115 | D17: [mbar] | H17: Design dp | I17: 3.673 | J17: [mbar] | O17: Buildt | P17: =TEXT(P14,"000,00000")&P16&"0" -> 155,4465200 | R17: Buildt | S17: =TEXT(S14,"000,00000")&S16&"0" -> 668,3362200
O18: Keps | P18: 0 | R18: Keps | S18: 0
B21: Settings for SYS MMF | H21: Settings for SYS MMF
B23: Medium | C23: Liquid | H23: Medium | I23: Liquid
B24: Density | C24: =C15 -> 989.1747 | D24: [kg/m³] | H24: Denstity | I24: =I15 -> 989.1747 | J24: [kg/m³]
B25: Flow Rate | C25: =C16 -> 380 | D25: =D16 -> [kg/h] | H25: Flow Rate | I25: =I16 -> 380 | J25: =J16 -> [kg/h]
B26: Flow Coeff | C26: =P17 -> 155,4465200 | D26: [-] | H26: Flow Coeff | I26: =S17 -> 668,3362200 | J26: [-]
